Department family,Entity,Date,Expense type,Expense area,Supplier,Transaction number,Amount
Department of Health,Leicestershire Partnership NHS Trust,01/11/23,Nurse - Band 6 -Agency,AMH - Central Access Point,HCL WORKFORCE SOLUTIONS,HWSI0001970,0.00
Department of Health,Leicestershire Partnership NHS Trust,01/11/23,Nurse - Band 6 -Agency,Adult City Central CMHT - St Peters,HCL WORKFORCE SOLUTIONS,HWSI0001970,0.00
Department of Health,Leicestershire Partnership NHS Trust,01/11/23,Nurse - Band 6 -Agency,Adult County South Leicestershire CMHT,HCL WORKFORCE SOLUTIONS,HWSI0001970,0.00
Department of Health,Leicestershire Partnership NHS Trust,01/11/23,Nurse - Band 7 - Agency,Adult County South Leicestershire CMHT,HCL WORKFORCE SOLUTIONS,HWSI0001970,0.00
Department of Health,Leicestershire Partnership NHS Trust,01/11/23,Nurse - Band 6 -Agency,CAMHS Waiting List Monies,HCL WORKFORCE SOLUTIONS,HWSI0001970,12089.12
Department of Health,Leicestershire Partnership NHS Trust,01/11/23,Nurse - Band 6 -Agency,City West CMHT MHSOP,HCL WORKFORCE SOLUTIONS,HWSI0001970,0.00
Department of Health,Leicestershire Partnership NHS Trust,01/11/23,Nurse - Band 7 - Agency,City West CMHT MHSOP,HCL WORKFORCE SOLUTIONS,HWSI0001970,1368.75
Department of Health,Leicestershire Partnership NHS Trust,01/11/23,Nurse - Band 6 -Agency,Crisis Resolution,HCL WORKFORCE SOLUTIONS,HWSI0001970,0.00
Department of Health,Leicestershire Partnership NHS Trust,01/11/23,Nurse - Band 6 -Agency,Crisis Response and Home Treatment,HCL WORKFORCE SOLUTIONS,HWSI0001970,8843.38
Department of Health,Leicestershire Partnership NHS Trust,01/11/23,Nurse - Band 6 -Agency,Melton & Rutland CMHT MHSOP,HCL WORKFORCE SOLUTIONS,HWSI0001970,0.00
Department of Health,Leicestershire Partnership NHS Trust,01/11/23,Nurse - Band 6 -Agency,AMH - Central Access Point,HCL NURSING,HNSI0001484,5604.67
Department of Health,Leicestershire Partnership NHS Trust,01/11/23,NURSE - BAND 2 - AGENCY,Agnes Unit,HCL NURSING,HNSI0001484,7989.22
Department of Health,Leicestershire Partnership NHS Trust,01/11/23,NURSE - BAND 5 - AGENCY,Agnes Unit,HCL NURSING,HNSI0001484,17669.54
Department of Health,Leicestershire Partnership NHS Trust,01/11/23,Nurse - Band 7 - Agency,Agnes Unit,HCL NURSING,HNSI0001484,1702.23
Department of Health,Leicestershire Partnership NHS Trust,01/11/23,NURSE - BAND 2 - AGENCY,Ashby Ward (Bradgate Unit),HCL NURSING,HNSI0001484,1171.72
Department of Health,Leicestershire Partnership NHS Trust,01/11/23,NURSE - BAND 5 - AGENCY,Ashby Ward (Bradgate Unit),HCL NURSING,HNSI0001484,11914.82
Department of Health,Leicestershire Partnership NHS Trust,01/11/23,NURSE - BAND 2 - AGENCY,Aston Ward Bradgate Unit (Prev Welford),HCL NURSING,HNSI0001484,1077.59
Department of Health,Leicestershire Partnership NHS Trust,01/11/23,NURSE - BAND 5 - AGENCY,Aston Ward Bradgate Unit (Prev Welford),HCL NURSING,HNSI0001484,5083.13
Department of Health,Leicestershire Partnership NHS Trust,01/11/23,NURSE - BAND 2 - AGENCY,Beaumont Ward - Bradgate Unit,HCL NURSING,HNSI0001484,771.19
Department of Health,Leicestershire Partnership NHS Trust,01/11/23,NURSE - BAND 5 - AGENCY,Beaumont Ward - Bradgate Unit,HCL NURSING,HNSI0001484,8581.63
Department of Health,Leicestershire Partnership NHS Trust,01/11/23,NURSE - BAND 2 - AGENCY,Belvoir Psychiatric Intensive Care Unit,HCL NURSING,HNSI0001484,8197.77
Department of Health,Leicestershire Partnership NHS Trust,01/11/23,NURSE - BAND 5 - AGENCY,Belvoir Psychiatric Intensive Care Unit,HCL NURSING,HNSI0001484,3689.22
Department of Health,Leicestershire Partnership NHS Trust,01/11/23,NURSE - BAND 2 - AGENCY,Bosworth Ward - Bradgate Unit,HCL NURSING,HNSI0001484,732.39
Department of Health,Leicestershire Partnership NHS Trust,01/11/23,NURSE - BAND 5 - AGENCY,Bosworth Ward - Bradgate Unit,HCL NURSING,HNSI0001484,1820.87
Department of Health,Leicestershire Partnership NHS Trust,01/11/23,NURSE - BAND 2 - AGENCY,Cedar (Willows),HCL NURSING,HNSI0001484,665.91
Department of Health,Leicestershire Partnership NHS Trust,01/11/23,NURSE - BAND 5 - AGENCY,Cedar (Willows),HCL NURSING,HNSI0001484,1362.59
Department of Health,Leicestershire Partnership NHS Trust,01/11/23,Nurse - Band 6 -Agency,City West CMHT MHSOP,HCL NURSING,HNSI0001484,641.98
Department of Health,Leicestershire Partnership NHS Trust,01/11/23,NURSE - BAND 2 - AGENCY,Coleman Ward,HCL NURSING,HNSI0001484,6241.15
Department of Health,Leicestershire Partnership NHS Trust,01/11/23,NURSE - BAND 5 - AGENCY,Coleman Ward,HCL NURSING,HNSI0001484,6145.98
Department of Health,Leicestershire Partnership NHS Trust,01/11/23,NURSE - BAND 5 - AGENCY,Crisis Resolution,HCL NURSING,HNSI0001484,724.11
Department of Health,Leicestershire Partnership NHS Trust,01/11/23,NURSE - BAND 2 - AGENCY,Griffin Ward (HPC),HCL NURSING,HNSI0001484,2212.76
Department of Health,Leicestershire Partnership NHS Trust,01/11/23,NURSE - BAND 5 - AGENCY,Griffin Ward (HPC),HCL NURSING,HNSI0001484,3738.71
Department of Health,Leicestershire Partnership NHS Trust,01/11/23,NURSE - BAND 2 - AGENCY,Gwendolen Ward,HCL NURSING,HNSI0001484,2302.31
Department of Health,Leicestershire Partnership NHS Trust,01/11/23,NURSE - BAND 5 - AGENCY,Gwendolen Ward,HCL NURSING,HNSI0001484,4137.97
Department of Health,Leicestershire Partnership NHS Trust,01/11/23,NURSE - BAND 2 - AGENCY,Heather Ward,HCL NURSING,HNSI0001484,1346.13
Department of Health,Leicestershire Partnership NHS Trust,01/11/23,NURSE - BAND 5 - AGENCY,Heather Ward,HCL NURSING,HNSI0001484,5808.49
Department of Health,Leicestershire Partnership NHS Trust,01/11/23,NURSE - BAND 2 - AGENCY,Kirby Ward,HCL NURSING,HNSI0001484,4143.36
Department of Health,Leicestershire Partnership NHS Trust,01/11/23,NURSE - BAND 5 - AGENCY,Kirby Ward,HCL NURSING,HNSI0001484,1940.29
Department of Health,Leicestershire Partnership NHS Trust,01/11/23,NURSE - BAND 2 - AGENCY,Maple Ward,HCL NURSING,HNSI0001484,835.60
Department of Health,Leicestershire Partnership NHS Trust,01/11/23,NURSE - BAND 5 - AGENCY,Maple Ward,HCL NURSING,HNSI0001484,1489.36
Department of Health,Leicestershire Partnership NHS Trust,01/11/23,NURSE - BAND 2 - AGENCY,Mill Lodge,HCL NURSING,HNSI0001484,1517.54
Department of Health,Leicestershire Partnership NHS Trust,01/11/23,NURSE - BAND 5 - AGENCY,Mill Lodge,HCL NURSING,HNSI0001484,1480.36
Department of Health,Leicestershire Partnership NHS Trust,01/11/23,NURSE - BAND 2 - AGENCY,Phoenix Ward (HPC),HCL NURSING,HNSI0001484,2398.02
Department of Health,Leicestershire Partnership NHS Trust,01/11/23,NURSE - BAND 5 - AGENCY,Phoenix Ward (HPC),HCL NURSING,HNSI0001484,4558.06
Department of Health,Leicestershire Partnership NHS Trust,01/11/23,NURSE - BAND 2 - AGENCY,Place Of Safety Assessment Unit,HCL NURSING,HNSI0001484,207.89
Department of Health,Leicestershire Partnership NHS Trust,01/11/23,NURSE - BAND 5 - AGENCY,Place Of Safety Assessment Unit,HCL NURSING,HNSI0001484,3032.03
Department of Health,Leicestershire Partnership NHS Trust,01/11/23,NURSE - BAND 2 - AGENCY,Stewart House,HCL NURSING,HNSI0001484,246.86
Department of Health,Leicestershire Partnership NHS Trust,01/11/23,NURSE - BAND 2 - AGENCY,Sycamore (Willows),HCL NURSING,HNSI0001484,431.44
Department of Health,Leicestershire Partnership NHS Trust,01/11/23,NURSE - BAND 5 - AGENCY,Sycamore (Willows),HCL NURSING,HNSI0001484,2089.10
Department of Health,Leicestershire Partnership NHS Trust,01/11/23,NURSE - BAND 2 - AGENCY,Thornton Ward - Bradgate Unit,HCL NURSING,HNSI0001484,1064.27
Department of Health,Leicestershire Partnership NHS Trust,01/11/23,NURSE - BAND 5 - AGENCY,Thornton Ward - Bradgate Unit,HCL NURSING,HNSI0001484,3601.62
Department of Health,Leicestershire Partnership NHS Trust,01/11/23,NURSE - BAND 2 - AGENCY,CAMHS Inpatient Service,HCL NURSING,HNSI0001486,4380.59
Department of Health,Leicestershire Partnership NHS Trust,01/11/23,NURSE - BAND 5 - AGENCY,CAMHS Inpatient Service,HCL NURSING,HNSI0001486,8333.19
Department of Health,Leicestershire Partnership NHS Trust,01/11/23,Nurse - Band 7 - Agency,CAMHS Waiting List Monies,HCL NURSING,HNSI0001486,2674.14
Department of Health,Leicestershire Partnership NHS Trust,01/11/23,Nurse - Band 7 - Agency,Crisis Response and Home Treatment,HCL NURSING,HNSI0001486,2752.25
Department of Health,Leicestershire Partnership NHS Trust,01/11/23,NURSE - BAND 2 - AGENCY,Welford Ward (Prev Langley),HCL NURSING,HNSI0001486,305.26
Department of Health,Leicestershire Partnership NHS Trust,01/11/23,NURSE - BAND 5 - AGENCY,Welford Ward (Prev Langley),HCL NURSING,HNSI0001486,4924.09
Department of Health,Leicestershire Partnership NHS Trust,01/11/23,Healthcare Services / Recharges from Non-NHS Bodies,Adult Eating Disorder Collaborative,PRIORY GROUP,301OCT23LEC,83349.70
Department of Health,Leicestershire Partnership NHS Trust,02/11/23,External Data Processing / Storage,Records & information Governance,L&R STORAGE,CV440,56514.99
Department of Health,Leicestershire Partnership NHS Trust,02/11/23,External Data Processing / Storage,Records & information Governance,L&R STORAGE,CV439,59357.86
Department of Health,Leicestershire Partnership NHS Trust,02/11/23,Payroll Deductions -Salary Sacrifice Cars Scheme,Balance Sheet Collection,TUSKER,82376,49747.10
Department of Health,Leicestershire Partnership NHS Trust,02/11/23,Unitary Payment,"The Agnes Unit (AKA Assessment and Treatment Centre) (P85, LPT)",ARDEN PARTNERSHIP (LEICESTER),SI0136,149278.40
Department of Health,Leicestershire Partnership NHS Trust,03/11/23,Healthcare Services / Recharges from Non-NHS Bodies,Adult Eating Disorder Collaborative,ELLERN MEDE MOORGATE,OTM0786,37200.00
Department of Health,Leicestershire Partnership NHS Trust,03/11/23,Computer EquipmentMaintenance,HIS,CLINISYS SOL LTD,INV34212301713,26650.06
Department of Health,Leicestershire Partnership NHS Trust,03/11/23,Computer EquipmentMaintenance,HIS External Recharge,CLINISYS SOL LTD,INV34212301713,4018.40
Department of Health,Leicestershire Partnership NHS Trust,03/11/23,Computer Software,HIS Infrastructure,PHOENIX SOFTWARE LTD,OP/I986484,60220.93
Department of Health,Leicestershire Partnership NHS Trust,06/11/23,Lease Rents (IFRS16),"Beaumont Leys Health Centre (P94, LPT)",LEICESTER LIFT CO,LEP1-SI1405,34244.84
Department of Health,Leicestershire Partnership NHS Trust,06/11/23,Crs_NHS_LT1y -Resus Inventory Supplied.,Balance Sheet Collection,SUPPLY CHAIN CO LTD,1124207865,30497.95
Department of Health,Leicestershire Partnership NHS Trust,06/11/23,Medical Equipment Repairs / Maintenance,Community Health Services Management,SPIRIT DIGITAL LTD,SIN231005SDI00072,43740.00
Department of Health,Leicestershire Partnership NHS Trust,07/11/23,Medical Equipment Repairs / Maintenance,Community Health Services Management,SPIRIT DIGITAL LTD,SCR231005S00008,-43740.00
Department of Health,Leicestershire Partnership NHS Trust,07/11/23,Healthcare Services / Recharges from Non-NHS Bodies,CMS Reserves,SPIRIT DIGITAL LTD,SIN231005SDI00073,59400.00
Department of Health,Leicestershire Partnership NHS Trust,08/11/23,HR / Payroll Services,HR Employment Services,LINCOLNSHIRE PART NHSFT(RP7),L0001076,34400.00
Department of Health,Leicestershire Partnership NHS Trust,08/11/23,WIP Project Not in BS - Buildings excl Dwellings,Work in Progress,TILBURY DOUGLAS CONSTRUCTION LTD,23110055,72298.88
Department of Health,Leicestershire Partnership NHS Trust,08/11/23,WIP Project Not in BS - Buildings excl Dwellings,Work in Progress,TILBURY DOUGLAS CONSTRUCTION LTD,23110059,194483.12
Department of Health,Leicestershire Partnership NHS Trust,08/11/23,WIP Project Not in BS - Buildings excl Dwellings,Work in Progress,TILBURY DOUGLAS CONSTRUCTION LTD,23110069,62945.14
Department of Health,Leicestershire Partnership NHS Trust,08/11/23,WIP Project Not in BS - Buildings excl Dwellings,Work in Progress,TILBURY DOUGLAS CONSTRUCTION LTD,23110074,119456.39
Department of Health,Leicestershire Partnership NHS Trust,08/11/23,WIP Project Not in BS - Buildings excl Dwellings,Work in Progress,TILBURY DOUGLAS CONSTRUCTION LTD,23110075,142079.62
Department of Health,Leicestershire Partnership NHS Trust,08/11/23,GP IT Expenditure,Area Team,SOFTCAT PLC,INVUK1039964,45060.00
Department of Health,Leicestershire Partnership NHS Trust,09/11/23,Network Costs - WAN Maint,HIS Infrastructure,VIRGIN MEDIA BUSINESS,262421-214,35695.32
Department of Health,Leicestershire Partnership NHS Trust,09/11/23,Drugs,Adult City Drugs,POLAR SPEED THERMOLOGISTICS,0001188804,13082.05
Department of Health,Leicestershire Partnership NHS Trust,09/11/23,Drugs,Adult County Drugs,POLAR SPEED THERMOLOGISTICS,0001188804,19623.07
Department of Health,Leicestershire Partnership NHS Trust,09/11/23,Insurance Costs,Chief Executives Office,NHS LITIGATION AUTHORITY,SICX414091,226283.80
Department of Health,Leicestershire Partnership NHS Trust,09/11/23,Payroll Deductions -Home Electronics 85 Oct 23,Balance Sheet Collection,SME HCI LTD,148911,44263.00
Department of Health,Leicestershire Partnership NHS Trust,09/11/23,Electricity,Estates & Facilities Central,UHL NHS TRUST (RWE),L0275634,56255.76
Department of Health,Leicestershire Partnership NHS Trust,09/11/23,Services / Recharges from NHS Trusts,Inter Unit I & E Distribution,UHL NHS TRUST (RWE),L0275639,93376.76
Department of Health,Leicestershire Partnership NHS Trust,10/11/23,Healthcare Services / Recharges from Non-NHS Bodies,AMH - Central Access Point,TURNING POINT,SI-TPS-00049252,660593.52
Department of Health,Leicestershire Partnership NHS Trust,10/11/23,Course / Training Expenses,SDF Specialist Training (Open Dialogue) 23/24,DIALOGIC TRAINING LTD,DT-0116,81600.00
Department of Health,Leicestershire Partnership NHS Trust,10/11/23,Staff Agency / Recruitment / Advertising Fees,International Recruitment,CHARKOS UK,657,27000.00
Department of Health,Leicestershire Partnership NHS Trust,13/11/23,Network Costs - WAN Maint,HIS Infrastructure,VIRGIN MEDIA BUSINESS,919266-160,25893.18
Department of Health,Leicestershire Partnership NHS Trust,13/11/23,Crs_NHS_LT1y -Resus Inventory Supplied.,Balance Sheet Collection,SUPPLY CHAIN CO LTD,1124214791,39630.63
Department of Health,Leicestershire Partnership NHS Trust,13/11/23,Nurse - Band 6 -Agency,AMH - Central Access Point,HCL NURSING,HNSI0001474,472.61
Department of Health,Leicestershire Partnership NHS Trust,13/11/23,NURSE - BAND 2 - AGENCY,Agnes Unit,HCL NURSING,HNSI0001474,7595.54
Department of Health,Leicestershire Partnership NHS Trust,13/11/23,NURSE - BAND 5 - AGENCY,Agnes Unit,HCL NURSING,HNSI0001474,19632.57
Department of Health,Leicestershire Partnership NHS Trust,13/11/23,Nurse - Band 7 - Agency,Agnes Unit,HCL NURSING,HNSI0001474,1626.75
Department of Health,Leicestershire Partnership NHS Trust,13/11/23,NURSE - BAND 2 - AGENCY,Ashby Ward (Bradgate Unit),HCL NURSING,HNSI0001474,1427.88
Department of Health,Leicestershire Partnership NHS Trust,13/11/23,NURSE - BAND 5 - AGENCY,Ashby Ward (Bradgate Unit),HCL NURSING,HNSI0001474,9376.75
Department of Health,Leicestershire Partnership NHS Trust,13/11/23,NURSE - BAND 2 - AGENCY,Aston Ward Bradgate Unit (Prev Welford),HCL NURSING,HNSI0001474,1568.38
Department of Health,Leicestershire Partnership NHS Trust,13/11/23,NURSE - BAND 5 - AGENCY,Aston Ward Bradgate Unit (Prev Welford),HCL NURSING,HNSI0001474,2019.66
Department of Health,Leicestershire Partnership NHS Trust,13/11/23,NURSE - BAND 2 - AGENCY,Beaumont Ward - Bradgate Unit,HCL NURSING,HNSI0001474,2680.42
Department of Health,Leicestershire Partnership NHS Trust,13/11/23,NURSE - BAND 5 - AGENCY,Beaumont Ward - Bradgate Unit,HCL NURSING,HNSI0001474,8789.04
Department of Health,Leicestershire Partnership NHS Trust,13/11/23,NURSE - BAND 2 - AGENCY,Belvoir Psychiatric Intensive Care Unit,HCL NURSING,HNSI0001474,2068.40
Department of Health,Leicestershire Partnership NHS Trust,13/11/23,NURSE - BAND 5 - AGENCY,Belvoir Psychiatric Intensive Care Unit,HCL NURSING,HNSI0001474,5870.33
Department of Health,Leicestershire Partnership NHS Trust,13/11/23,NURSE - BAND 2 - AGENCY,Bosworth Ward - Bradgate Unit,HCL NURSING,HNSI0001474,1058.72
Department of Health,Leicestershire Partnership NHS Trust,13/11/23,NURSE - BAND 5 - AGENCY,Bosworth Ward - Bradgate Unit,HCL NURSING,HNSI0001474,976.78
Department of Health,Leicestershire Partnership NHS Trust,13/11/23,NURSE - BAND 2 - AGENCY,Cedar (Willows),HCL NURSING,HNSI0001474,497.80
Department of Health,Leicestershire Partnership NHS Trust,13/11/23,NURSE - BAND 5 - AGENCY,Cedar (Willows),HCL NURSING,HNSI0001474,822.94
Department of Health,Leicestershire Partnership NHS Trust,13/11/23,Nurse - Band 6 -Agency,City West CMHT MHSOP,HCL NURSING,HNSI0001474,2092.50
Department of Health,Leicestershire Partnership NHS Trust,13/11/23,NURSE - BAND 2 - AGENCY,Coleman Ward,HCL NURSING,HNSI0001474,3833.28
Department of Health,Leicestershire Partnership NHS Trust,13/11/23,NURSE - BAND 5 - AGENCY,Coleman Ward,HCL NURSING,HNSI0001474,4967.55
Department of Health,Leicestershire Partnership NHS Trust,13/11/23,NURSE - BAND 5 - AGENCY,Crisis Resolution,HCL NURSING,HNSI0001474,1026.24
Department of Health,Leicestershire Partnership NHS Trust,13/11/23,NURSE - BAND 2 - AGENCY,Griffin Ward (HPC),HCL NURSING,HNSI0001474,1825.14
Department of Health,Leicestershire Partnership NHS Trust,13/11/23,NURSE - BAND 5 - AGENCY,Griffin Ward (HPC),HCL NURSING,HNSI0001474,6032.92
Department of Health,Leicestershire Partnership NHS Trust,13/11/23,NURSE - BAND 2 - AGENCY,Gwendolen Ward,HCL NURSING,HNSI0001474,2543.34
Department of Health,Leicestershire Partnership NHS Trust,13/11/23,NURSE - BAND 5 - AGENCY,Gwendolen Ward,HCL NURSING,HNSI0001474,1562.54
Department of Health,Leicestershire Partnership NHS Trust,13/11/23,NURSE - BAND 2 - AGENCY,Heather Ward,HCL NURSING,HNSI0001474,2729.23
Department of Health,Leicestershire Partnership NHS Trust,13/11/23,NURSE - BAND 5 - AGENCY,Heather Ward,HCL NURSING,HNSI0001474,4521.71
Department of Health,Leicestershire Partnership NHS Trust,13/11/23,NURSE - BAND 2 - AGENCY,Kirby Ward,HCL NURSING,HNSI0001474,2669.73
Department of Health,Leicestershire Partnership NHS Trust,13/11/23,NURSE - BAND 5 - AGENCY,Kirby Ward,HCL NURSING,HNSI0001474,874.95
Department of Health,Leicestershire Partnership NHS Trust,13/11/23,NURSE - BAND 2 - AGENCY,Maple Ward,HCL NURSING,HNSI0001474,205.84
Department of Health,Leicestershire Partnership NHS Trust,13/11/23,NURSE - BAND 5 - AGENCY,Maple Ward,HCL NURSING,HNSI0001474,986.91
Department of Health,Leicestershire Partnership NHS Trust,13/11/23,Nurse - Band 6 -Agency,Mental Health Liaison Team,HCL NURSING,HNSI0001474,1916.95
Department of Health,Leicestershire Partnership NHS Trust,13/11/23,NURSE - BAND 2 - AGENCY,Mill Lodge,HCL NURSING,HNSI0001474,2151.00
Department of Health,Leicestershire Partnership NHS Trust,13/11/23,NURSE - BAND 5 - AGENCY,Mill Lodge,HCL NURSING,HNSI0001474,1521.82
Department of Health,Leicestershire Partnership NHS Trust,13/11/23,NURSE - BAND 2 - AGENCY,Phoenix Ward (HPC),HCL NURSING,HNSI0001474,3859.33
Department of Health,Leicestershire Partnership NHS Trust,13/11/23,NURSE - BAND 5 - AGENCY,Phoenix Ward (HPC),HCL NURSING,HNSI0001474,2042.12
Department of Health,Leicestershire Partnership NHS Trust,13/11/23,NURSE - BAND 2 - AGENCY,Place Of Safety Assessment Unit,HCL NURSING,HNSI0001474,1111.68
Department of Health,Leicestershire Partnership NHS Trust,13/11/23,NURSE - BAND 5 - AGENCY,Place Of Safety Assessment Unit,HCL NURSING,HNSI0001474,1512.24
Department of Health,Leicestershire Partnership NHS Trust,13/11/23,NURSE - BAND 2 - AGENCY,Sycamore (Willows),HCL NURSING,HNSI0001474,273.04
Department of Health,Leicestershire Partnership NHS Trust,13/11/23,NURSE - BAND 5 - AGENCY,Sycamore (Willows),HCL NURSING,HNSI0001474,1177.42
Department of Health,Leicestershire Partnership NHS Trust,13/11/23,NURSE - BAND 2 - AGENCY,Thornton Ward - Bradgate Unit,HCL NURSING,HNSI0001474,606.04
Department of Health,Leicestershire Partnership NHS Trust,13/11/23,NURSE - BAND 5 - AGENCY,Thornton Ward - Bradgate Unit,HCL NURSING,HNSI0001474,1312.42
Department of Health,Leicestershire Partnership NHS Trust,13/11/23,Nurse - Band 6 -Agency,CAMHS Waiting List Monies,HCL WORKFORCE SOLUTIONS,HWSI0001957,16657.76
Department of Health,Leicestershire Partnership NHS Trust,13/11/23,Nurse - Band 6 -Agency,Crisis Response and Home Treatment,HCL WORKFORCE SOLUTIONS,HWSI0001957,7862.70
Department of Health,Leicestershire Partnership NHS Trust,13/11/23,Nurse - Band 7 - Agency,Crisis Response and Home Treatment,HCL WORKFORCE SOLUTIONS,HWSI0001957,1437.07
Department of Health,Leicestershire Partnership NHS Trust,13/11/23,Nurse - Band 6 -Agency,AMH - Central Access Point,HCL WORKFORCE SOLUTIONS,HWSI0001956,7498.74
Department of Health,Leicestershire Partnership NHS Trust,13/11/23,Nurse - Band 6 -Agency,Adult City Central CMHT - St Peters,HCL WORKFORCE SOLUTIONS,HWSI0001956,1479.54
Department of Health,Leicestershire Partnership NHS Trust,13/11/23,Nurse - Band 6 -Agency,Adult County South Leicestershire CMHT,HCL WORKFORCE SOLUTIONS,HWSI0001956,4077.89
Department of Health,Leicestershire Partnership NHS Trust,13/11/23,Nurse - Band 6 -Agency,City West CMHT MHSOP,HCL WORKFORCE SOLUTIONS,HWSI0001956,1364.88
Department of Health,Leicestershire Partnership NHS Trust,13/11/23,Nurse - Band 6 -Agency,Crisis Resolution,HCL WORKFORCE SOLUTIONS,HWSI0001956,7218.91
Department of Health,Leicestershire Partnership NHS Trust,13/11/23,Nurse - Band 6 -Agency,Melton & Rutland CMHT MHSOP,HCL WORKFORCE SOLUTIONS,HWSI0001956,1471.67
Department of Health,Leicestershire Partnership NHS Trust,13/11/23,Nurse - Band 6 -Agency,SDF Case Load Reviews 23/24,HCL WORKFORCE SOLUTIONS,HWSI0001956,669.96
Department of Health,Leicestershire Partnership NHS Trust,13/11/23,NURSE - BAND 2 - AGENCY,CAMHS Inpatient Service,HCL NURSING,HNSI0001476,3655.73
Department of Health,Leicestershire Partnership NHS Trust,13/11/23,NURSE - BAND 5 - AGENCY,CAMHS Inpatient Service,HCL NURSING,HNSI0001476,8406.40
Department of Health,Leicestershire Partnership NHS Trust,13/11/23,Nurse - Band 7 - Agency,CAMHS Waiting List Monies,HCL NURSING,HNSI0001476,2971.65
Department of Health,Leicestershire Partnership NHS Trust,13/11/23,Nurse - Band 7 - Agency,Crisis Response and Home Treatment,HCL NURSING,HNSI0001476,2671.73
Department of Health,Leicestershire Partnership NHS Trust,13/11/23,NURSE - BAND 2 - AGENCY,Welford Ward (Prev Langley),HCL NURSING,HNSI0001476,873.41
Department of Health,Leicestershire Partnership NHS Trust,13/11/23,NURSE - BAND 5 - AGENCY,Welford Ward (Prev Langley),HCL NURSING,HNSI0001476,6047.88
Department of Health,Leicestershire Partnership NHS Trust,14/11/23,Mobile Telephone Rental / Calls,Specific Unit Budget Reserves,VODAFONE CORPORATE LTD,NOVEMBER2023,71085.01
Department of Health,Leicestershire Partnership NHS Trust,14/11/23,NURSE - BAND 2 - AGENCY,Beechwood Ward,HCL NURSING,HNSI0001485,7556.56
Department of Health,Leicestershire Partnership NHS Trust,14/11/23,NURSE - BAND 5 - AGENCY,Beechwood Ward,HCL NURSING,HNSI0001485,6019.16
Department of Health,Leicestershire Partnership NHS Trust,14/11/23,NURSE - BAND 5 - AGENCY,City Planned Care - East,HCL NURSING,HNSI0001485,39092.28
Department of Health,Leicestershire Partnership NHS Trust,14/11/23,NURSE - BAND 5 - AGENCY,City Planned Care - West,HCL NURSING,HNSI0001485,23030.50
Department of Health,Leicestershire Partnership NHS Trust,14/11/23,NURSE - BAND 2 - AGENCY,Clarendon Ward,HCL NURSING,HNSI0001485,3341.82
Department of Health,Leicestershire Partnership NHS Trust,14/11/23,NURSE - BAND 5 - AGENCY,Clarendon Ward,HCL NURSING,HNSI0001485,3098.88
Department of Health,Leicestershire Partnership NHS Trust,14/11/23,NURSE - BAND 2 - AGENCY,Coalville Snibston Ward,HCL NURSING,HNSI0001485,5614.47
Department of Health,Leicestershire Partnership NHS Trust,14/11/23,NURSE - BAND 5 - AGENCY,Coalville Snibston Ward,HCL NURSING,HNSI0001485,4222.19
Department of Health,Leicestershire Partnership NHS Trust,14/11/23,NURSE - BAND 2 - AGENCY,Coalville Ward 2,HCL NURSING,HNSI0001485,3783.91
Department of Health,Leicestershire Partnership NHS Trust,14/11/23,NURSE - BAND 5 - AGENCY,Coalville Ward 2,HCL NURSING,HNSI0001485,3440.77
Department of Health,Leicestershire Partnership NHS Trust,14/11/23,NURSE - BAND 2 - AGENCY,Dalgliesh Ward,HCL NURSING,HNSI0001485,6913.43
Department of Health,Leicestershire Partnership NHS Trust,14/11/23,NURSE - BAND 5 - AGENCY,Dalgliesh Ward,HCL NURSING,HNSI0001485,5593.16
Department of Health,Leicestershire Partnership NHS Trust,14/11/23,NURSE - BAND 5 - AGENCY,"East Planned Care - Melton,Syston,Rutland",HCL NURSING,HNSI0001485,1925.45
Department of Health,Leicestershire Partnership NHS Trust,14/11/23,NURSE - BAND 5 - AGENCY,"East Planned Care - Oadby,Wigston & Harborough",HCL NURSING,HNSI0001485,1547.20
Department of Health,Leicestershire Partnership NHS Trust,14/11/23,NURSE - BAND 2 - AGENCY,H&B Comm Hosp East Ward,HCL NURSING,HNSI0001485,5293.36
Department of Health,Leicestershire Partnership NHS Trust,14/11/23,NURSE - BAND 5 - AGENCY,H&B Comm Hosp East Ward,HCL NURSING,HNSI0001485,4581.91
Department of Health,Leicestershire Partnership NHS Trust,14/11/23,NURSE - BAND 2 - AGENCY,H&B Comm Hosp North Ward,HCL NURSING,HNSI0001485,9402.42
Department of Health,Leicestershire Partnership NHS Trust,14/11/23,NURSE - BAND 5 - AGENCY,H&B Comm Hosp North Ward,HCL NURSING,HNSI0001485,1937.11
Department of Health,Leicestershire Partnership NHS Trust,14/11/23,NURSE - BAND 2 - AGENCY,Lough Swithland Ward,HCL NURSING,HNSI0001485,1777.28
Department of Health,Leicestershire Partnership NHS Trust,14/11/23,NURSE - BAND 5 - AGENCY,Lough Swithland Ward,HCL NURSING,HNSI0001485,5028.89
Department of Health,Leicestershire Partnership NHS Trust,14/11/23,NURSE - BAND 2 - AGENCY,Loughborough Charnwood Ward,HCL NURSING,HNSI0001485,6525.82
Department of Health,Leicestershire Partnership NHS Trust,14/11/23,NURSE - BAND 5 - AGENCY,Loughborough Charnwood Ward,HCL NURSING,HNSI0001485,9935.25
Department of Health,Leicestershire Partnership NHS Trust,14/11/23,NURSE - BAND 5 - AGENCY,Non Recurrent 2012/13,HCL NURSING,HNSI0001485,587.43
Department of Health,Leicestershire Partnership NHS Trust,14/11/23,NURSE - BAND 2 - AGENCY,Rutland Ward Nursing,HCL NURSING,HNSI0001485,3400.44
Department of Health,Leicestershire Partnership NHS Trust,14/11/23,NURSE - BAND 5 - AGENCY,Rutland Ward Nursing,HCL NURSING,HNSI0001485,3095.32
Department of Health,Leicestershire Partnership NHS Trust,14/11/23,NURSE - BAND 2 - AGENCY,St Lukes Stroke Ward,HCL NURSING,HNSI0001485,5718.39
Department of Health,Leicestershire Partnership NHS Trust,14/11/23,NURSE - BAND 5 - AGENCY,St Lukes Stroke Ward,HCL NURSING,HNSI0001485,3270.91
Department of Health,Leicestershire Partnership NHS Trust,14/11/23,NURSE - BAND 2 - AGENCY,St Lukes Ward 3,HCL NURSING,HNSI0001485,4197.90
Department of Health,Leicestershire Partnership NHS Trust,14/11/23,NURSE - BAND 5 - AGENCY,St Lukes Ward 3,HCL NURSING,HNSI0001485,1096.38
Department of Health,Leicestershire Partnership NHS Trust,14/11/23,NURSE - BAND 5 - AGENCY,West Planned Care  - Charnwood Hub,HCL NURSING,HNSI0001485,2329.32
Department of Health,Leicestershire Partnership NHS Trust,14/11/23,NURSE - BAND 5 - AGENCY,West Planned Care  - Hinckley Hub,HCL NURSING,HNSI0001485,1998.87
Department of Health,Leicestershire Partnership NHS Trust,14/11/23,External Consultancy Fees,Facilities Team,BLOOM PROC SERV LTD,SIN047329,38853.16
Department of Health,Leicestershire Partnership NHS Trust,15/11/23,Printing Costs,Estates & Facilities Central,LEXMARK INTERNATIONAL LTD,900650306976,26176.18
Department of Health,Leicestershire Partnership NHS Trust,17/11/23,Gas,"Beaumont Leys Health Centre (P94, LPT)",TOTAL GAS & POWER LTD,319993877/23,1417.55
Department of Health,Leicestershire Partnership NHS Trust,17/11/23,Gas,"Bennion Centre (including Forest Grange Day Unit) (P8, LPT)",TOTAL GAS & POWER LTD,319993877/23,14209.91
Department of Health,Leicestershire Partnership NHS Trust,17/11/23,Gas,"Bradgate Unit (including Glenvale day Unit) (P7, LPT)",TOTAL GAS & POWER LTD,319993877/23,28423.71
Department of Health,Leicestershire Partnership NHS Trust,17/11/23,Gas,Bridge Park Plaza - First Floor (LPT),TOTAL GAS & POWER LTD,319993877/23,2620.50
Department of Health,Leicestershire Partnership NHS Trust,17/11/23,Gas,"Bridge Park Road - Units 2 and 3 (P148, LPT)",TOTAL GAS & POWER LTD,319993877/23,329.11
Department of Health,Leicestershire Partnership NHS Trust,17/11/23,Gas,"Coalville Community Hospital (P138, LPT)",TOTAL GAS & POWER LTD,319993877/23,16634.86
Department of Health,Leicestershire Partnership NHS Trust,17/11/23,Gas,"Coalville Health Centre (P121, LPT)",TOTAL GAS & POWER LTD,319993877/23,1339.78
Department of Health,Leicestershire Partnership NHS Trust,17/11/23,Gas,"Evington Centre (P6, LPT)",TOTAL GAS & POWER LTD,319993877/23,2485.56
Department of Health,Leicestershire Partnership NHS Trust,17/11/23,Gas,"Farm Lodge (P34, LPT)",TOTAL GAS & POWER LTD,319993877/23,230.91
Department of Health,Leicestershire Partnership NHS Trust,17/11/23,Gas,"Feilding Palmer Hospital (Lutterworth) (P131, LPT)",TOTAL GAS & POWER LTD,319993877/23,3551.26
Department of Health,Leicestershire Partnership NHS Trust,17/11/23,Gas,"Frith Cottages 3 & 4 (P36, LPT)",TOTAL GAS & POWER LTD,319993877/23,229.80
Department of Health,Leicestershire Partnership NHS Trust,17/11/23,Gas,HIS,TOTAL GAS & POWER LTD,319993877/23,244.80
Department of Health,Leicestershire Partnership NHS Trust,17/11/23,Gas,"Hawthorne Centre - Coalville (P14, LPT)",TOTAL GAS & POWER LTD,319993877/23,939.50
Department of Health,Leicestershire Partnership NHS Trust,17/11/23,Gas,"Hinckley and Bosworth Community Hospital (Sunnyside) (P133, LPT)",TOTAL GAS & POWER LTD,319993877/23,12890.65
Department of Health,Leicestershire Partnership NHS Trust,17/11/23,Gas,"Hynca Lodge (P33, LPT)",TOTAL GAS & POWER LTD,319993877/23,747.95
Department of Health,Leicestershire Partnership NHS Trust,17/11/23,Gas,"LGH - Gwendolen House (P4, LPT)",TOTAL GAS & POWER LTD,319993877/23,2865.29
Department of Health,Leicestershire Partnership NHS Trust,17/11/23,Gas,"Loughborough Hospital (P136, LPT)",TOTAL GAS & POWER LTD,319993877/23,32345.06
Department of Health,Leicestershire Partnership NHS Trust,17/11/23,Gas,Mawson House (LPT),TOTAL GAS & POWER LTD,319993877/23,982.74
Department of Health,Leicestershire Partnership NHS Trust,17/11/23,Gas,"Mett Centre (P49, LPT)",TOTAL GAS & POWER LTD,319993877/23,656.58
Department of Health,Leicestershire Partnership NHS Trust,17/11/23,Gas,"Narborough Health Centre (P117, LPT)",TOTAL GAS & POWER LTD,319993877/23,1074.27
Department of Health,Leicestershire Partnership NHS Trust,17/11/23,Gas,"Neville Centre - LGH (was DSC) (P147, LPT)",TOTAL GAS & POWER LTD,319993877/23,2098.54
Department of Health,Leicestershire Partnership NHS Trust,17/11/23,Gas,"OSL House (P54, LPT)",TOTAL GAS & POWER LTD,319993877/23,1314.83
Department of Health,Leicestershire Partnership NHS Trust,17/11/23,Gas,"Orchard Resource Centre (P15, LPT)",TOTAL GAS & POWER LTD,319993877/23,952.32
Department of Health,Leicestershire Partnership NHS Trust,17/11/23,Gas,"Rutland Memorial Hospital (P134, LPT)",TOTAL GAS & POWER LTD,319993877/23,372.83
Department of Health,Leicestershire Partnership NHS Trust,17/11/23,Gas,"Shepshed Health Centre (P123, LPT)",TOTAL GAS & POWER LTD,319993877/23,1251.75
Department of Health,Leicestershire Partnership NHS Trust,17/11/23,Gas,"Springfield Road Health Centre (P92, LPT)",TOTAL GAS & POWER LTD,319993877/23,1152.74
Department of Health,Leicestershire Partnership NHS Trust,17/11/23,Gas,"Stewart House (P61, LPT)",TOTAL GAS & POWER LTD,319993877/23,6808.50
Department of Health,Leicestershire Partnership NHS Trust,17/11/23,Gas,"Swithland House - London Road 352 (P44, LPT)",TOTAL GAS & POWER LTD,319993877/23,1920.48
Department of Health,Leicestershire Partnership NHS Trust,17/11/23,Gas,"The Agnes Unit (AKA Assessment and Treatment Centre) (P85, LPT)",TOTAL GAS & POWER LTD,319993877/23,8365.95
Department of Health,Leicestershire Partnership NHS Trust,17/11/23,Gas,The Beacon,TOTAL GAS & POWER LTD,319993877/23,2637.39
Department of Health,Leicestershire Partnership NHS Trust,17/11/23,Gas,"The Cedars (P19, LPT)",TOTAL GAS & POWER LTD,319993877/23,457.43
Department of Health,Leicestershire Partnership NHS Trust,17/11/23,Gas,"The Grange 1 (P4, LPT)",TOTAL GAS & POWER LTD,319993877/23,574.71
Department of Health,Leicestershire Partnership NHS Trust,17/11/23,Gas,"The Grange 2 (P41, LPT)",TOTAL GAS & POWER LTD,319993877/23,287.06
Department of Health,Leicestershire Partnership NHS Trust,17/11/23,Gas,"The Willows - Cordelia Close (P22, LPT)",TOTAL GAS & POWER LTD,319993877/23,6105.18
Department of Health,Leicestershire Partnership NHS Trust,17/11/23,Gas,"Valentine Centre (P3, LPT)",TOTAL GAS & POWER LTD,319993877/23,1234.17
Department of Health,Leicestershire Partnership NHS Trust,17/11/23,Gas,"Westcotes Group -Westcotes House (P78, LPT)",TOTAL GAS & POWER LTD,319993877/23,2162.65
Department of Health,Leicestershire Partnership NHS Trust,17/11/23,Gas,"Winstanley Drive Health Centre (P8, LPT)",TOTAL GAS & POWER LTD,319993877/23,1075.74
Department of Health,Leicestershire Partnership NHS Trust,20/11/23,Med GP Trainees,Medical Trainees,MWL TEACHING HOSPITALS NHS TRUST,16826342,75000.00
Department of Health,Leicestershire Partnership NHS Trust,20/11/23,Healthcare Services / Recharges from Non-NHS Bodies,Adult Eating Disorder Collaborative,ELLERN MEDE MOORGATE,OTM0665,25200.00
Department of Health,Leicestershire Partnership NHS Trust,20/11/23,Crs_NHS_LT1y -Resus Inventory Supplied.,Balance Sheet Collection,SUPPLY CHAIN CO LTD,1124221592,33096.63
Department of Health,Leicestershire Partnership NHS Trust,21/11/23,Services / Recharges from NHS Trusts,Inter Unit I & E Distribution,UHL NHS TRUST (RWE),L0275975,40264.95
Department of Health,Leicestershire Partnership NHS Trust,21/11/23,Landline Telephone Rental / Calls,"Beaumont Leys Health Centre (P94, LPT)",VIRGIN MEDIA BUSINESS,853083001/004/1123,334.94
Department of Health,Leicestershire Partnership NHS Trust,21/11/23,Landline Telephone Rental / Calls,"Bennion Centre (including Forest Grange Day Unit) (P8, LPT)",VIRGIN MEDIA BUSINESS,853083001/004/1123,8.77
Department of Health,Leicestershire Partnership NHS Trust,21/11/23,Landline Telephone Rental / Calls,"Bradgate Unit (including Glenvale day Unit) (P7, LPT)",VIRGIN MEDIA BUSINESS,853083001/004/1123,5860.81
Department of Health,Leicestershire Partnership NHS Trust,21/11/23,Landline Telephone Rental / Calls,Braunstone Health and Social Care Centre (Part) (PROPCO),VIRGIN MEDIA BUSINESS,853083001/004/1123,1130.69
Department of Health,Leicestershire Partnership NHS Trust,21/11/23,Landline Telephone Rental / Calls,Bridge Park Plaza - First Floor (LPT),VIRGIN MEDIA BUSINESS,853083001/004/1123,3405.74
Department of Health,Leicestershire Partnership NHS Trust,21/11/23,Landline Telephone Rental / Calls,"Coalville Community Hospital (P138, LPT)",VIRGIN MEDIA BUSINESS,853083001/004/1123,-888.04
Department of Health,Leicestershire Partnership NHS Trust,21/11/23,Landline Telephone Rental / Calls,"Coalville Health Centre (P121, LPT)",VIRGIN MEDIA BUSINESS,853083001/004/1123,122.77
Department of Health,Leicestershire Partnership NHS Trust,21/11/23,Landline Telephone Rental / Calls,County Hall,VIRGIN MEDIA BUSINESS,853083001/004/1123,1500.96
Department of Health,Leicestershire Partnership NHS Trust,21/11/23,Landline Telephone Rental / Calls,Estates & Facilities Central,VIRGIN MEDIA BUSINESS,853083001/004/1123,9.35
Department of Health,Leicestershire Partnership NHS Trust,21/11/23,Landline Telephone Rental / Calls,"Evington Centre (P6, LPT)",VIRGIN MEDIA BUSINESS,853083001/004/1123,204.06
Department of Health,Leicestershire Partnership NHS Trust,21/11/23,Landline Telephone Rental / Calls,HIS,VIRGIN MEDIA BUSINESS,853083001/004/1123,2939.82
Department of Health,Leicestershire Partnership NHS Trust,21/11/23,Landline Telephone Rental / Calls,"Hawthorne Centre - Coalville (P14, LPT)",VIRGIN MEDIA BUSINESS,853083001/004/1123,-108.36
Department of Health,Leicestershire Partnership NHS Trust,21/11/23,Landline Telephone Rental / Calls,"Hinckley and Bosworth Community Hospital (Sunnyside) (P133, LPT)",VIRGIN MEDIA BUSINESS,853083001/004/1123,954.83
Department of Health,Leicestershire Partnership NHS Trust,21/11/23,Landline Telephone Rental / Calls,"Hynca Lodge (P33, LPT)",VIRGIN MEDIA BUSINESS,853083001/004/1123,398.23
Department of Health,Leicestershire Partnership NHS Trust,21/11/23,Landline Telephone Rental / Calls,"Legion House, Ashby",VIRGIN MEDIA BUSINESS,853083001/004/1123,25.54
Department of Health,Leicestershire Partnership NHS Trust,21/11/23,Landline Telephone Rental / Calls,"Loughborough Hospital (P136, LPT)",VIRGIN MEDIA BUSINESS,853083001/004/1123,4633.42
Department of Health,Leicestershire Partnership NHS Trust,21/11/23,Landline Telephone Rental / Calls,Mawson House (LPT),VIRGIN MEDIA BUSINESS,853083001/004/1123,458.46
Department of Health,Leicestershire Partnership NHS Trust,21/11/23,Landline Telephone Rental / Calls,Merlyn Vaz Centre (CHP),VIRGIN MEDIA BUSINESS,853083001/004/1123,1360.79
Department of Health,Leicestershire Partnership NHS Trust,21/11/23,Landline Telephone Rental / Calls,"Mett Centre (P49, LPT)",VIRGIN MEDIA BUSINESS,853083001/004/1123,99.38
Department of Health,Leicestershire Partnership NHS Trust,21/11/23,Landline Telephone Rental / Calls,NSPCC Training Cente,VIRGIN MEDIA BUSINESS,853083001/004/1123,159.96
Department of Health,Leicestershire Partnership NHS Trust,21/11/23,Landline Telephone Rental / Calls,New Parks Health Centre (PROPCO),VIRGIN MEDIA BUSINESS,853083001/004/1123,1546.20
Department of Health,Leicestershire Partnership NHS Trust,21/11/23,Landline Telephone Rental / Calls,"OSL House (P54, LPT)",VIRGIN MEDIA BUSINESS,853083001/004/1123,905.90
Department of Health,Leicestershire Partnership NHS Trust,21/11/23,Landline Telephone Rental / Calls,"Orchard Resource Centre (P15, LPT)",VIRGIN MEDIA BUSINESS,853083001/004/1123,551.48
Department of Health,Leicestershire Partnership NHS Trust,21/11/23,Landline Telephone Rental / Calls,Pasley Road Health Centre (PROPCO),VIRGIN MEDIA BUSINESS,853083001/004/1123,127.51
Department of Health,Leicestershire Partnership NHS Trust,21/11/23,Landline Telephone Rental / Calls,"Prince Philip House (P96, LPT)",VIRGIN MEDIA BUSINESS,853083001/004/1123,1220.93
Department of Health,Leicestershire Partnership NHS Trust,21/11/23,Landline Telephone Rental / Calls,Rushey Mead Health Centre (PROPCO),VIRGIN MEDIA BUSINESS,853083001/004/1123,68.72
Department of Health,Leicestershire Partnership NHS Trust,21/11/23,Landline Telephone Rental / Calls,"Springfield Road Health Centre (P92, LPT)",VIRGIN MEDIA BUSINESS,853083001/004/1123,387.36
Department of Health,Leicestershire Partnership NHS Trust,21/11/23,Landline Telephone Rental / Calls,"St Peters Health Center (Part 1st and 2nd floors) (P66, LPT)",VIRGIN MEDIA BUSINESS,853083001/004/1123,1636.07
Department of Health,Leicestershire Partnership NHS Trust,21/11/23,Landline Telephone Rental / Calls,"Swithland House - London Road 352 (P44, LPT)",VIRGIN MEDIA BUSINESS,853083001/004/1123,235.37
Department of Health,Leicestershire Partnership NHS Trust,21/11/23,Landline Telephone Rental / Calls,"The Cedars (P19, LPT)",VIRGIN MEDIA BUSINESS,853083001/004/1123,731.23
Department of Health,Leicestershire Partnership NHS Trust,21/11/23,Landline Telephone Rental / Calls,"The Willows - Cordelia Close (P22, LPT)",VIRGIN MEDIA BUSINESS,853083001/004/1123,-122.02
Department of Health,Leicestershire Partnership NHS Trust,21/11/23,Landline Telephone Rental / Calls,"Valentine Centre (P3, LPT)",VIRGIN MEDIA BUSINESS,853083001/004/1123,564.43
Department of Health,Leicestershire Partnership NHS Trust,21/11/23,Landline Telephone Rental / Calls,Warren Park Way 25 (PROPCO),VIRGIN MEDIA BUSINESS,853083001/004/1123,808.09
Department of Health,Leicestershire Partnership NHS Trust,21/11/23,Landline Telephone Rental / Calls,"Westcotes Group -Westcotes House (P78, LPT)",VIRGIN MEDIA BUSINESS,853083001/004/1123,823.74
Department of Health,Leicestershire Partnership NHS Trust,21/11/23,Landline Telephone Rental / Calls,"Winstanley Drive Health Centre (P8, LPT)",VIRGIN MEDIA BUSINESS,853083001/004/1123,46.44
Department of Health,Leicestershire Partnership NHS Trust,21/11/23,NURSE - BAND 2 - AGENCY,Beechwood Ward,HCL NURSING,HNSI0001500,6820.66
Department of Health,Leicestershire Partnership NHS Trust,21/11/23,NURSE - BAND 5 - AGENCY,Beechwood Ward,HCL NURSING,HNSI0001500,2740.94
Department of Health,Leicestershire Partnership NHS Trust,21/11/23,NURSE - BAND 5 - AGENCY,City Planned Care - East,HCL NURSING,HNSI0001500,26216.34
Department of Health,Leicestershire Partnership NHS Trust,21/11/23,NURSE - BAND 5 - AGENCY,City Planned Care - West,HCL NURSING,HNSI0001500,17479.53
Department of Health,Leicestershire Partnership NHS Trust,21/11/23,NURSE - BAND 2 - AGENCY,Clarendon Ward,HCL NURSING,HNSI0001500,6108.57
Department of Health,Leicestershire Partnership NHS Trust,21/11/23,NURSE - BAND 5 - AGENCY,Clarendon Ward,HCL NURSING,HNSI0001500,3684.51
Department of Health,Leicestershire Partnership NHS Trust,21/11/23,NURSE - BAND 2 - AGENCY,Coalville Snibston Ward,HCL NURSING,HNSI0001500,3103.35
Department of Health,Leicestershire Partnership NHS Trust,21/11/23,NURSE - BAND 5 - AGENCY,Coalville Snibston Ward,HCL NURSING,HNSI0001500,4032.35
Department of Health,Leicestershire Partnership NHS Trust,21/11/23,NURSE - BAND 2 - AGENCY,Coalville Ward 2,HCL NURSING,HNSI0001500,4802.87
Department of Health,Leicestershire Partnership NHS Trust,21/11/23,NURSE - BAND 5 - AGENCY,Coalville Ward 2,HCL NURSING,HNSI0001500,514.85
Department of Health,Leicestershire Partnership NHS Trust,21/11/23,NURSE - BAND 2 - AGENCY,Dalgliesh Ward,HCL NURSING,HNSI0001500,4777.21
Department of Health,Leicestershire Partnership NHS Trust,21/11/23,NURSE - BAND 5 - AGENCY,Dalgliesh Ward,HCL NURSING,HNSI0001500,5557.45
Department of Health,Leicestershire Partnership NHS Trust,21/11/23,NURSE - BAND 5 - AGENCY,"East Planned Care - Melton,Syston,Rutland",HCL NURSING,HNSI0001500,5509.37
Department of Health,Leicestershire Partnership NHS Trust,21/11/23,NURSE - BAND 5 - AGENCY,"East Planned Care - Oadby,Wigston & Harborough",HCL NURSING,HNSI0001500,5344.88
Department of Health,Leicestershire Partnership NHS Trust,21/11/23,NURSE - BAND 2 - AGENCY,H&B Comm Hosp East Ward,HCL NURSING,HNSI0001500,7700.81
Department of Health,Leicestershire Partnership NHS Trust,21/11/23,NURSE - BAND 5 - AGENCY,H&B Comm Hosp East Ward,HCL NURSING,HNSI0001500,4739.04
Department of Health,Leicestershire Partnership NHS Trust,21/11/23,NURSE - BAND 2 - AGENCY,H&B Comm Hosp North Ward,HCL NURSING,HNSI0001500,7657.89
Department of Health,Leicestershire Partnership NHS Trust,21/11/23,NURSE - BAND 5 - AGENCY,H&B Comm Hosp North Ward,HCL NURSING,HNSI0001500,2735.94
Department of Health,Leicestershire Partnership NHS Trust,21/11/23,NURSE - BAND 2 - AGENCY,Lough Swithland Ward,HCL NURSING,HNSI0001500,4271.56
Department of Health,Leicestershire Partnership NHS Trust,21/11/23,NURSE - BAND 5 - AGENCY,Lough Swithland Ward,HCL NURSING,HNSI0001500,2984.80
Department of Health,Leicestershire Partnership NHS Trust,21/11/23,NURSE - BAND 2 - AGENCY,Loughborough Charnwood Ward,HCL NURSING,HNSI0001500,2834.36
Department of Health,Leicestershire Partnership NHS Trust,21/11/23,NURSE - BAND 5 - AGENCY,Loughborough Charnwood Ward,HCL NURSING,HNSI0001500,9794.87
Department of Health,Leicestershire Partnership NHS Trust,21/11/23,NURSE - BAND 2 - AGENCY,Rutland Ward Nursing,HCL NURSING,HNSI0001500,1619.65
Department of Health,Leicestershire Partnership NHS Trust,21/11/23,NURSE - BAND 5 - AGENCY,Rutland Ward Nursing,HCL NURSING,HNSI0001500,4080.18
Department of Health,Leicestershire Partnership NHS Trust,21/11/23,NURSE - BAND 2 - AGENCY,St Lukes Stroke Ward,HCL NURSING,HNSI0001500,5832.23
Department of Health,Leicestershire Partnership NHS Trust,21/11/23,NURSE - BAND 5 - AGENCY,St Lukes Stroke Ward,HCL NURSING,HNSI0001500,3652.32
Department of Health,Leicestershire Partnership NHS Trust,21/11/23,NURSE - BAND 2 - AGENCY,St Lukes Ward 3,HCL NURSING,HNSI0001500,5746.07
Department of Health,Leicestershire Partnership NHS Trust,21/11/23,NURSE - BAND 5 - AGENCY,St Lukes Ward 3,HCL NURSING,HNSI0001500,2916.06
Department of Health,Leicestershire Partnership NHS Trust,21/11/23,NURSE - BAND 5 - AGENCY,West Planned Care  - Charnwood Hub,HCL NURSING,HNSI0001500,2765.68
Department of Health,Leicestershire Partnership NHS Trust,21/11/23,NURSE - BAND 5 - AGENCY,West Planned Care  - Hinckley Hub,HCL NURSING,HNSI0001500,4925.43
Department of Health,Leicestershire Partnership NHS Trust,21/11/23,NURSE - BAND 2 - AGENCY,Beechwood Ward,HCL NURSING,HNSI0001496,5458.13
Department of Health,Leicestershire Partnership NHS Trust,21/11/23,NURSE - BAND 5 - AGENCY,Beechwood Ward,HCL NURSING,HNSI0001496,3650.76
Department of Health,Leicestershire Partnership NHS Trust,21/11/23,NURSE - BAND 5 - AGENCY,City Planned Care - East,HCL NURSING,HNSI0001496,23846.04
Department of Health,Leicestershire Partnership NHS Trust,21/11/23,NURSE - BAND 5 - AGENCY,City Planned Care - West,HCL NURSING,HNSI0001496,19870.76
Department of Health,Leicestershire Partnership NHS Trust,21/11/23,NURSE - BAND 2 - AGENCY,Clarendon Ward,HCL NURSING,HNSI0001496,5705.97
Department of Health,Leicestershire Partnership NHS Trust,21/11/23,NURSE - BAND 5 - AGENCY,Clarendon Ward,HCL NURSING,HNSI0001496,1804.32
Department of Health,Leicestershire Partnership NHS Trust,21/11/23,NURSE - BAND 2 - AGENCY,Coalville Snibston Ward,HCL NURSING,HNSI0001496,3949.35
Department of Health,Leicestershire Partnership NHS Trust,21/11/23,NURSE - BAND 5 - AGENCY,Coalville Snibston Ward,HCL NURSING,HNSI0001496,2253.19
Department of Health,Leicestershire Partnership NHS Trust,21/11/23,NURSE - BAND 2 - AGENCY,Coalville Ward 2,HCL NURSING,HNSI0001496,10014.92
Department of Health,Leicestershire Partnership NHS Trust,21/11/23,NURSE - BAND 5 - AGENCY,Coalville Ward 2,HCL NURSING,HNSI0001496,2019.17
Department of Health,Leicestershire Partnership NHS Trust,21/11/23,NURSE - BAND 2 - AGENCY,Dalgliesh Ward,HCL NURSING,HNSI0001496,6757.88
Department of Health,Leicestershire Partnership NHS Trust,21/11/23,NURSE - BAND 5 - AGENCY,Dalgliesh Ward,HCL NURSING,HNSI0001496,4690.60
Department of Health,Leicestershire Partnership NHS Trust,21/11/23,NURSE - BAND 5 - AGENCY,"East Planned Care - Melton,Syston,Rutland",HCL NURSING,HNSI0001496,1598.39
Department of Health,Leicestershire Partnership NHS Trust,21/11/23,NURSE - BAND 5 - AGENCY,"East Planned Care - Oadby,Wigston & Harborough",HCL NURSING,HNSI0001496,3808.21
Department of Health,Leicestershire Partnership NHS Trust,21/11/23,NURSE - BAND 2 - AGENCY,H&B Comm Hosp East Ward,HCL NURSING,HNSI0001496,5812.99
Department of Health,Leicestershire Partnership NHS Trust,21/11/23,NURSE - BAND 5 - AGENCY,H&B Comm Hosp East Ward,HCL NURSING,HNSI0001496,4321.33
Department of Health,Leicestershire Partnership NHS Trust,21/11/23,NURSE - BAND 2 - AGENCY,H&B Comm Hosp North Ward,HCL NURSING,HNSI0001496,7064.23
Department of Health,Leicestershire Partnership NHS Trust,21/11/23,NURSE - BAND 5 - AGENCY,H&B Comm Hosp North Ward,HCL NURSING,HNSI0001496,1881.43
Department of Health,Leicestershire Partnership NHS Trust,21/11/23,NURSE - BAND 2 - AGENCY,Lough Swithland Ward,HCL NURSING,HNSI0001496,1610.57
Department of Health,Leicestershire Partnership NHS Trust,21/11/23,NURSE - BAND 5 - AGENCY,Lough Swithland Ward,HCL NURSING,HNSI0001496,2102.90
Department of Health,Leicestershire Partnership NHS Trust,21/11/23,NURSE - BAND 2 - AGENCY,Loughborough Charnwood Ward,HCL NURSING,HNSI0001496,2934.51
Department of Health,Leicestershire Partnership NHS Trust,21/11/23,NURSE - BAND 5 - AGENCY,Loughborough Charnwood Ward,HCL NURSING,HNSI0001496,7904.57
Department of Health,Leicestershire Partnership NHS Trust,21/11/23,NURSE - BAND 2 - AGENCY,Rutland Ward Nursing,HCL NURSING,HNSI0001496,898.61
Department of Health,Leicestershire Partnership NHS Trust,21/11/23,NURSE - BAND 5 - AGENCY,Rutland Ward Nursing,HCL NURSING,HNSI0001496,2673.20
Department of Health,Leicestershire Partnership NHS Trust,21/11/23,NURSE - BAND 2 - AGENCY,St Lukes Stroke Ward,HCL NURSING,HNSI0001496,5332.91
Department of Health,Leicestershire Partnership NHS Trust,21/11/23,NURSE - BAND 5 - AGENCY,St Lukes Stroke Ward,HCL NURSING,HNSI0001496,5864.85
Department of Health,Leicestershire Partnership NHS Trust,21/11/23,NURSE - BAND 5 - AGENCY,St Lukes Ward 3,HCL NURSING,HNSI0001496,3706.15
Department of Health,Leicestershire Partnership NHS Trust,21/11/23,NURSE - BAND 5 - AGENCY,West Planned Care  - Charnwood Hub,HCL NURSING,HNSI0001496,1309.21
Department of Health,Leicestershire Partnership NHS Trust,21/11/23,NURSE - BAND 5 - AGENCY,West Planned Care  - Hinckley Hub,HCL NURSING,HNSI0001496,2935.00
Department of Health,Leicestershire Partnership NHS Trust,21/11/23,Water & Sewerage Charges,"Coalville Community Hospital (P138, LPT)",WATER PLUS,0865005329/CRN00696398,-36318.44
Department of Health,Leicestershire Partnership NHS Trust,21/11/23,Water & Sewerage Charges,"Beaumont Leys Health Centre (P94, LPT)",WATER PLUS,0865005329/INV03918008,165.63
Department of Health,Leicestershire Partnership NHS Trust,21/11/23,Water & Sewerage Charges,Bridge Park Road (Unit C18) (LPT),WATER PLUS,0865005329/INV03918008,35.89
Department of Health,Leicestershire Partnership NHS Trust,21/11/23,Water & Sewerage Charges,"Bridge Park Road - Units 2 and 3 (P148, LPT)",WATER PLUS,0865005329/INV03918008,787.63
Department of Health,Leicestershire Partnership NHS Trust,21/11/23,Water & Sewerage Charges,"Coalville Community Hospital (P138, LPT)",WATER PLUS,0865005329/INV03918008,38182.15
Department of Health,Leicestershire Partnership NHS Trust,21/11/23,Water & Sewerage Charges,"Coalville Health Centre (P121, LPT)",WATER PLUS,0865005329/INV03918008,290.36
Department of Health,Leicestershire Partnership NHS Trust,21/11/23,Water & Sewerage Charges,"Evington Centre (P6, LPT)",WATER PLUS,0865005329/INV03918008,1484.42
Department of Health,Leicestershire Partnership NHS Trust,21/11/23,Water & Sewerage Charges,"Feilding Palmer Hospital (Lutterworth) (P131, LPT)",WATER PLUS,0865005329/INV03918008,35.77
Department of Health,Leicestershire Partnership NHS Trust,21/11/23,Water & Sewerage Charges,HIS,WATER PLUS,0865005329/INV03918008,83.60
Department of Health,Leicestershire Partnership NHS Trust,21/11/23,Water & Sewerage Charges,Hinckley & District Hospital (PROPCO),WATER PLUS,0865005329/INV03918008,59.43
Department of Health,Leicestershire Partnership NHS Trust,21/11/23,Water & Sewerage Charges,"Hinckley and Bosworth Community Hospital (Sunnyside) (P133, LPT)",WATER PLUS,0865005329/INV03918008,1846.26
Department of Health,Leicestershire Partnership NHS Trust,21/11/23,Water & Sewerage Charges,"Hynca Lodge (P33, LPT)",WATER PLUS,0865005329/INV03918008,227.27
Department of Health,Leicestershire Partnership NHS Trust,21/11/23,Water & Sewerage Charges,Linnaeus Nursery - Cordelia Close,WATER PLUS,0865005329/INV03918008,44.50
Department of Health,Leicestershire Partnership NHS Trust,21/11/23,Water & Sewerage Charges,"Loughborough Hospital (P136, LPT)",WATER PLUS,0865005329/INV03918008,3275.64
Department of Health,Leicestershire Partnership NHS Trust,21/11/23,Water & Sewerage Charges,"Narborough Health Centre (P117, LPT)",WATER PLUS,0865005329/INV03918008,96.52
Department of Health,Leicestershire Partnership NHS Trust,21/11/23,Water & Sewerage Charges,"OSL House (P54, LPT)",WATER PLUS,0865005329/INV03918008,317.08
Department of Health,Leicestershire Partnership NHS Trust,21/11/23,Water & Sewerage Charges,"Orchard Resource Centre (P15, LPT)",WATER PLUS,0865005329/INV03918008,443.18
Department of Health,Leicestershire Partnership NHS Trust,21/11/23,Water & Sewerage Charges,"Prince Philip House (P96, LPT)",WATER PLUS,0865005329/INV03918008,372.84
Department of Health,Leicestershire Partnership NHS Trust,21/11/23,Water & Sewerage Charges,Rothesay -  London Road 352A (LPT),WATER PLUS,0865005329/INV03918008,324.49
Department of Health,Leicestershire Partnership NHS Trust,21/11/23,Water & Sewerage Charges,"Rutland Memorial Hospital (P134, LPT)",WATER PLUS,0865005329/INV03918008,3467.20
Department of Health,Leicestershire Partnership NHS Trust,21/11/23,Water & Sewerage Charges,"Shepshed Health Centre (P123, LPT)",WATER PLUS,0865005329/INV03918008,340.84
Department of Health,Leicestershire Partnership NHS Trust,21/11/23,Water & Sewerage Charges,"Springfield Road Health Centre (P92, LPT)",WATER PLUS,0865005329/INV03918008,287.02
Department of Health,Leicestershire Partnership NHS Trust,21/11/23,Water & Sewerage Charges,"Stewart House (P61, LPT)",WATER PLUS,0865005329/INV03918008,1221.74
Department of Health,Leicestershire Partnership NHS Trust,21/11/23,Water & Sewerage Charges,"Swithland House - London Road 352 (P44, LPT)",WATER PLUS,0865005329/INV03918008,113.22
Department of Health,Leicestershire Partnership NHS Trust,21/11/23,Water & Sewerage Charges,"The Agnes Unit (AKA Assessment and Treatment Centre) (P85, LPT)",WATER PLUS,0865005329/INV03918008,886.68
Department of Health,Leicestershire Partnership NHS Trust,21/11/23,Water & Sewerage Charges,"The Cedars (P19, LPT)",WATER PLUS,0865005329/INV03918008,133.71
Department of Health,Leicestershire Partnership NHS Trust,21/11/23,Water & Sewerage Charges,"The Grange 1 (P4, LPT)",WATER PLUS,0865005329/INV03918008,45.91
Department of Health,Leicestershire Partnership NHS Trust,21/11/23,Water & Sewerage Charges,"The Grange 2 (P41, LPT)",WATER PLUS,0865005329/INV03918008,69.29
Department of Health,Leicestershire Partnership NHS Trust,21/11/23,Water & Sewerage Charges,"The Willows - Cordelia Close (P22, LPT)",WATER PLUS,0865005329/INV03918008,1452.10
Department of Health,Leicestershire Partnership NHS Trust,21/11/23,Water & Sewerage Charges,Westcotes Group – Artemis House,WATER PLUS,0865005329/INV03918008,215.27
Department of Health,Leicestershire Partnership NHS Trust,23/11/23,FP10'S,Adult City Drugs,NHS BUS SERVICES AUTHORITY,1000079302,8383.46
Department of Health,Leicestershire Partnership NHS Trust,23/11/23,FP10'S,Adult County Drugs,NHS BUS SERVICES AUTHORITY,1000079302,15837.44
Department of Health,Leicestershire Partnership NHS Trust,23/11/23,FP10'S,CAMHS Outpatients,NHS BUS SERVICES AUTHORITY,1000079302,53205.83
Department of Health,Leicestershire Partnership NHS Trust,23/11/23,FP10'S,Community Paediatrics,NHS BUS SERVICES AUTHORITY,1000079302,52473.56
Department of Health,Leicestershire Partnership NHS Trust,23/11/23,FP10'S,Dementia Related Drugs and Investigations,NHS BUS SERVICES AUTHORITY,1000079302,12200.28
Department of Health,Leicestershire Partnership NHS Trust,23/11/23,FP10'S,Eating Disorders Outpatient Service,NHS BUS SERVICES AUTHORITY,1000079302,303.83
Department of Health,Leicestershire Partnership NHS Trust,23/11/23,FP10'S,Forensic Services - Community,NHS BUS SERVICES AUTHORITY,1000079302,221.08
Department of Health,Leicestershire Partnership NHS Trust,23/11/23,FP10'S,LAC,NHS BUS SERVICES AUTHORITY,1000079302,29.86
Department of Health,Leicestershire Partnership NHS Trust,23/11/23,FP10'S,LOROS Pharmacy,NHS BUS SERVICES AUTHORITY,1000079302,49.09
Department of Health,Leicestershire Partnership NHS Trust,23/11/23,FP10'S,MHSOP Inpatient Therapy - Bennion,NHS BUS SERVICES AUTHORITY,1000079302,3.31
Department of Health,Leicestershire Partnership NHS Trust,23/11/23,FP10'S,Snr Med Staff (Inc Med Reps),NHS BUS SERVICES AUTHORITY,1000079302,7606.29
Department of Health,Leicestershire Partnership NHS Trust,23/11/23,Nurse - Band 6 -Agency,AMH - Central Access Point,HCL NURSING,HNSI0001499,1851.54
Department of Health,Leicestershire Partnership NHS Trust,23/11/23,Nurse - Band 6 -Agency,Adult County North West Leicestershire CMHT,HCL NURSING,HNSI0001499,813.17
Department of Health,Leicestershire Partnership NHS Trust,23/11/23,NURSE - BAND 2 - AGENCY,Agnes Unit,HCL NURSING,HNSI0001499,9195.21
Department of Health,Leicestershire Partnership NHS Trust,23/11/23,NURSE - BAND 5 - AGENCY,Agnes Unit,HCL NURSING,HNSI0001499,18105.46
Department of Health,Leicestershire Partnership NHS Trust,23/11/23,Nurse - Band 7 - Agency,Agnes Unit,HCL NURSING,HNSI0001499,1520.11
Department of Health,Leicestershire Partnership NHS Trust,23/11/23,NURSE - BAND 2 - AGENCY,Ashby Ward (Bradgate Unit),HCL NURSING,HNSI0001499,617.53
Department of Health,Leicestershire Partnership NHS Trust,23/11/23,NURSE - BAND 5 - AGENCY,Ashby Ward (Bradgate Unit),HCL NURSING,HNSI0001499,10629.83
Department of Health,Leicestershire Partnership NHS Trust,23/11/23,NURSE - BAND 2 - AGENCY,Aston Ward Bradgate Unit (Prev Welford),HCL NURSING,HNSI0001499,432.44
Department of Health,Leicestershire Partnership NHS Trust,23/11/23,NURSE - BAND 5 - AGENCY,Aston Ward Bradgate Unit (Prev Welford),HCL NURSING,HNSI0001499,2353.56
Department of Health,Leicestershire Partnership NHS Trust,23/11/23,NURSE - BAND 2 - AGENCY,Beaumont Ward - Bradgate Unit,HCL NURSING,HNSI0001499,3490.14
Department of Health,Leicestershire Partnership NHS Trust,23/11/23,NURSE - BAND 5 - AGENCY,Beaumont Ward - Bradgate Unit,HCL NURSING,HNSI0001499,5849.80
Department of Health,Leicestershire Partnership NHS Trust,23/11/23,NURSE - BAND 2 - AGENCY,Belvoir Psychiatric Intensive Care Unit,HCL NURSING,HNSI0001499,7226.61
Department of Health,Leicestershire Partnership NHS Trust,23/11/23,NURSE - BAND 5 - AGENCY,Belvoir Psychiatric Intensive Care Unit,HCL NURSING,HNSI0001499,3446.47
Department of Health,Leicestershire Partnership NHS Trust,23/11/23,NURSE - BAND 2 - AGENCY,Bosworth Ward - Bradgate Unit,HCL NURSING,HNSI0001499,1229.97
Department of Health,Leicestershire Partnership NHS Trust,23/11/23,NURSE - BAND 5 - AGENCY,Bosworth Ward - Bradgate Unit,HCL NURSING,HNSI0001499,493.45
Department of Health,Leicestershire Partnership NHS Trust,23/11/23,NURSE - BAND 5 - AGENCY,Cedar (Willows),HCL NURSING,HNSI0001499,3303.66
Department of Health,Leicestershire Partnership NHS Trust,23/11/23,Nurse - Band 6 -Agency,City West CMHT MHSOP,HCL NURSING,HNSI0001499,855.97
Department of Health,Leicestershire Partnership NHS Trust,23/11/23,NURSE - BAND 2 - AGENCY,Coleman Ward,HCL NURSING,HNSI0001499,3760.03
Department of Health,Leicestershire Partnership NHS Trust,23/11/23,NURSE - BAND 5 - AGENCY,Coleman Ward,HCL NURSING,HNSI0001499,4727.26
Department of Health,Leicestershire Partnership NHS Trust,23/11/23,NURSE - BAND 5 - AGENCY,Crisis Resolution,HCL NURSING,HNSI0001499,1321.42
Department of Health,Leicestershire Partnership NHS Trust,23/11/23,NURSE - BAND 2 - AGENCY,Griffin Ward (HPC),HCL NURSING,HNSI0001499,1163.30
Department of Health,Leicestershire Partnership NHS Trust,23/11/23,NURSE - BAND 5 - AGENCY,Griffin Ward (HPC),HCL NURSING,HNSI0001499,6009.35
Department of Health,Leicestershire Partnership NHS Trust,23/11/23,NURSE - BAND 2 - AGENCY,Gwendolen Ward,HCL NURSING,HNSI0001499,905.82
Department of Health,Leicestershire Partnership NHS Trust,23/11/23,NURSE - BAND 5 - AGENCY,Gwendolen Ward,HCL NURSING,HNSI0001499,3891.33
Department of Health,Leicestershire Partnership NHS Trust,23/11/23,NURSE - BAND 2 - AGENCY,H&B Comm Hosp East Ward,HCL NURSING,HNSI0001499,156.77
Department of Health,Leicestershire Partnership NHS Trust,23/11/23,NURSE - BAND 2 - AGENCY,Heather Ward,HCL NURSING,HNSI0001499,2173.98
Department of Health,Leicestershire Partnership NHS Trust,23/11/23,NURSE - BAND 5 - AGENCY,Heather Ward,HCL NURSING,HNSI0001499,7152.70
Department of Health,Leicestershire Partnership NHS Trust,23/11/23,NURSE - BAND 2 - AGENCY,Kirby Ward,HCL NURSING,HNSI0001499,1676.98
Department of Health,Leicestershire Partnership NHS Trust,23/11/23,NURSE - BAND 5 - AGENCY,Kirby Ward,HCL NURSING,HNSI0001499,1926.83
Department of Health,Leicestershire Partnership NHS Trust,23/11/23,NURSE - BAND 2 - AGENCY,Maple Ward,HCL NURSING,HNSI0001499,774.30
Department of Health,Leicestershire Partnership NHS Trust,23/11/23,NURSE - BAND 5 - AGENCY,Maple Ward,HCL NURSING,HNSI0001499,1749.89
Department of Health,Leicestershire Partnership NHS Trust,23/11/23,NURSE - BAND 2 - AGENCY,Mill Lodge,HCL NURSING,HNSI0001499,4613.19
Department of Health,Leicestershire Partnership NHS Trust,23/11/23,NURSE - BAND 5 - AGENCY,Mill Lodge,HCL NURSING,HNSI0001499,4043.86
Department of Health,Leicestershire Partnership NHS Trust,23/11/23,NURSE - BAND 2 - AGENCY,Phoenix Ward (HPC),HCL NURSING,HNSI0001499,203.06
Department of Health,Leicestershire Partnership NHS Trust,23/11/23,NURSE - BAND 5 - AGENCY,Phoenix Ward (HPC),HCL NURSING,HNSI0001499,1312.42
Department of Health,Leicestershire Partnership NHS Trust,23/11/23,NURSE - BAND 2 - AGENCY,Place Of Safety Assessment Unit,HCL NURSING,HNSI0001499,1365.91
Department of Health,Leicestershire Partnership NHS Trust,23/11/23,NURSE - BAND 5 - AGENCY,Place Of Safety Assessment Unit,HCL NURSING,HNSI0001499,2937.74
Department of Health,Leicestershire Partnership NHS Trust,23/11/23,NURSE - BAND 2 - AGENCY,Stewart House,HCL NURSING,HNSI0001499,205.84
Department of Health,Leicestershire Partnership NHS Trust,23/11/23,NURSE - BAND 2 - AGENCY,Sycamore (Willows),HCL NURSING,HNSI0001499,371.72
Department of Health,Leicestershire Partnership NHS Trust,23/11/23,NURSE - BAND 5 - AGENCY,Sycamore (Willows),HCL NURSING,HNSI0001499,822.94
Department of Health,Leicestershire Partnership NHS Trust,23/11/23,NURSE - BAND 2 - AGENCY,Thornton Ward - Bradgate Unit,HCL NURSING,HNSI0001499,498.23
Department of Health,Leicestershire Partnership NHS Trust,23/11/23,NURSE - BAND 5 - AGENCY,Thornton Ward - Bradgate Unit,HCL NURSING,HNSI0001499,850.54
Department of Health,Leicestershire Partnership NHS Trust,23/11/23,Nurse - Band 6 -Agency,CAMHS Waiting List Monies,HCL WORKFORCE SOLUTIONS,HWSI0001998,12350.09
Department of Health,Leicestershire Partnership NHS Trust,23/11/23,Nurse - Band 7 - Agency,City West CMHT MHSOP,HCL WORKFORCE SOLUTIONS,HWSI0001998,1368.75
Department of Health,Leicestershire Partnership NHS Trust,23/11/23,Nurse - Band 6 -Agency,Crisis Response and Home Treatment,HCL WORKFORCE SOLUTIONS,HWSI0001998,9691.35
Department of Health,Leicestershire Partnership NHS Trust,23/11/23,Nurse - Band 6 -Agency,CAMHS Waiting List Monies,HCL WORKFORCE SOLUTIONS,HWSI0001999,12187.33
Department of Health,Leicestershire Partnership NHS Trust,23/11/23,Nurse - Band 7 - Agency,City West CMHT MHSOP,HCL WORKFORCE SOLUTIONS,HWSI0001999,1368.75
Department of Health,Leicestershire Partnership NHS Trust,23/11/23,Nurse - Band 6 -Agency,Crisis Response and Home Treatment,HCL WORKFORCE SOLUTIONS,HWSI0001999,10591.61
Department of Health,Leicestershire Partnership NHS Trust,23/11/23,Nurse - Band 6 -Agency,AMH - Central Access Point,HCL NURSING,HNSI0001495,2481.83
Department of Health,Leicestershire Partnership NHS Trust,23/11/23,Nurse - Band 6 -Agency,Adult County North West Leicestershire CMHT,HCL NURSING,HNSI0001495,7047.50
Department of Health,Leicestershire Partnership NHS Trust,23/11/23,NURSE - BAND 2 - AGENCY,Agnes Unit,HCL NURSING,HNSI0001495,9646.30
Department of Health,Leicestershire Partnership NHS Trust,23/11/23,NURSE - BAND 5 - AGENCY,Agnes Unit,HCL NURSING,HNSI0001495,24154.92
Department of Health,Leicestershire Partnership NHS Trust,23/11/23,Nurse - Band 7 - Agency,Agnes Unit,HCL NURSING,HNSI0001495,1702.27
Department of Health,Leicestershire Partnership NHS Trust,23/11/23,NURSE - BAND 2 - AGENCY,Ashby Ward (Bradgate Unit),HCL NURSING,HNSI0001495,1935.16
Department of Health,Leicestershire Partnership NHS Trust,23/11/23,NURSE - BAND 5 - AGENCY,Ashby Ward (Bradgate Unit),HCL NURSING,HNSI0001495,8797.13
Department of Health,Leicestershire Partnership NHS Trust,23/11/23,NURSE - BAND 2 - AGENCY,Aston Ward Bradgate Unit (Prev Welford),HCL NURSING,HNSI0001495,680.13
Department of Health,Leicestershire Partnership NHS Trust,23/11/23,NURSE - BAND 5 - AGENCY,Aston Ward Bradgate Unit (Prev Welford),HCL NURSING,HNSI0001495,1818.26
Department of Health,Leicestershire Partnership NHS Trust,23/11/23,NURSE - BAND 2 - AGENCY,Beaumont Ward - Bradgate Unit,HCL NURSING,HNSI0001495,1561.60
Department of Health,Leicestershire Partnership NHS Trust,23/11/23,NURSE - BAND 5 - AGENCY,Beaumont Ward - Bradgate Unit,HCL NURSING,HNSI0001495,4232.82
Department of Health,Leicestershire Partnership NHS Trust,23/11/23,NURSE - BAND 2 - AGENCY,Belvoir Psychiatric Intensive Care Unit,HCL NURSING,HNSI0001495,5360.77
Department of Health,Leicestershire Partnership NHS Trust,23/11/23,NURSE - BAND 5 - AGENCY,Belvoir Psychiatric Intensive Care Unit,HCL NURSING,HNSI0001495,5971.68
Department of Health,Leicestershire Partnership NHS Trust,23/11/23,NURSE - BAND 2 - AGENCY,Bosworth Ward - Bradgate Unit,HCL NURSING,HNSI0001495,411.68
Department of Health,Leicestershire Partnership NHS Trust,23/11/23,NURSE - BAND 5 - AGENCY,Bosworth Ward - Bradgate Unit,HCL NURSING,HNSI0001495,1368.40
Department of Health,Leicestershire Partnership NHS Trust,23/11/23,NURSE - BAND 5 - AGENCY,Cedar (Willows),HCL NURSING,HNSI0001495,1600.03
Department of Health,Leicestershire Partnership NHS Trust,23/11/23,NURSE - BAND 2 - AGENCY,Coleman Ward,HCL NURSING,HNSI0001495,2899.54
Department of Health,Leicestershire Partnership NHS Trust,23/11/23,NURSE - BAND 5 - AGENCY,Coleman Ward,HCL NURSING,HNSI0001495,2303.65
Department of Health,Leicestershire Partnership NHS Trust,23/11/23,NURSE - BAND 5 - AGENCY,Crisis Resolution,HCL NURSING,HNSI0001495,945.42
Department of Health,Leicestershire Partnership NHS Trust,23/11/23,Nurse - Band 6 -Agency,Crisis Resolution,HCL NURSING,HNSI0001495,1495.79
Department of Health,Leicestershire Partnership NHS Trust,23/11/23,NURSE - BAND 2 - AGENCY,Griffin Ward (HPC),HCL NURSING,HNSI0001495,2016.61
Department of Health,Leicestershire Partnership NHS Trust,23/11/23,NURSE - BAND 5 - AGENCY,Griffin Ward (HPC),HCL NURSING,HNSI0001495,6475.49
Department of Health,Leicestershire Partnership NHS Trust,23/11/23,NURSE - BAND 2 - AGENCY,Gwendolen Ward,HCL NURSING,HNSI0001495,861.53
Department of Health,Leicestershire Partnership NHS Trust,23/11/23,NURSE - BAND 5 - AGENCY,Gwendolen Ward,HCL NURSING,HNSI0001495,2579.15
Department of Health,Leicestershire Partnership NHS Trust,23/11/23,NURSE - BAND 2 - AGENCY,Heather Ward,HCL NURSING,HNSI0001495,1420.32
Department of Health,Leicestershire Partnership NHS Trust,23/11/23,NURSE - BAND 5 - AGENCY,Heather Ward,HCL NURSING,HNSI0001495,7722.51
Department of Health,Leicestershire Partnership NHS Trust,23/11/23,NURSE - BAND 2 - AGENCY,Kirby Ward,HCL NURSING,HNSI0001495,3838.13
Department of Health,Leicestershire Partnership NHS Trust,23/11/23,NURSE - BAND 5 - AGENCY,Kirby Ward,HCL NURSING,HNSI0001495,1288.01
Department of Health,Leicestershire Partnership NHS Trust,23/11/23,NURSE - BAND 2 - AGENCY,Maple Ward,HCL NURSING,HNSI0001495,411.68
Department of Health,Leicestershire Partnership NHS Trust,23/11/23,NURSE - BAND 5 - AGENCY,Maple Ward,HCL NURSING,HNSI0001495,493.45
Department of Health,Leicestershire Partnership NHS Trust,23/11/23,Nurse - Band 6 -Agency,Mental Health Liaison Team,HCL NURSING,HNSI0001495,3144.47
Department of Health,Leicestershire Partnership NHS Trust,23/11/23,NURSE - BAND 2 - AGENCY,Mill Lodge,HCL NURSING,HNSI0001495,1750.72
Department of Health,Leicestershire Partnership NHS Trust,23/11/23,NURSE - BAND 5 - AGENCY,Mill Lodge,HCL NURSING,HNSI0001495,1564.17
Department of Health,Leicestershire Partnership NHS Trust,23/11/23,NURSE - BAND 2 - AGENCY,Phoenix Ward (HPC),HCL NURSING,HNSI0001495,1290.65
Department of Health,Leicestershire Partnership NHS Trust,23/11/23,NURSE - BAND 5 - AGENCY,Phoenix Ward (HPC),HCL NURSING,HNSI0001495,3026.03
Department of Health,Leicestershire Partnership NHS Trust,23/11/23,NURSE - BAND 2 - AGENCY,Place Of Safety Assessment Unit,HCL NURSING,HNSI0001495,867.68
Department of Health,Leicestershire Partnership NHS Trust,23/11/23,NURSE - BAND 5 - AGENCY,Place Of Safety Assessment Unit,HCL NURSING,HNSI0001495,3576.43
Department of Health,Leicestershire Partnership NHS Trust,23/11/23,NURSE - BAND 2 - AGENCY,Stewart House,HCL NURSING,HNSI0001495,257.91
Department of Health,Leicestershire Partnership NHS Trust,23/11/23,NURSE - BAND 2 - AGENCY,Sycamore (Willows),HCL NURSING,HNSI0001495,244.00
Department of Health,Leicestershire Partnership NHS Trust,23/11/23,NURSE - BAND 5 - AGENCY,Sycamore (Willows),HCL NURSING,HNSI0001495,613.84
Department of Health,Leicestershire Partnership NHS Trust,23/11/23,NURSE - BAND 2 - AGENCY,Thornton Ward - Bradgate Unit,HCL NURSING,HNSI0001495,823.37
Department of Health,Leicestershire Partnership NHS Trust,23/11/23,NURSE - BAND 5 - AGENCY,Thornton Ward - Bradgate Unit,HCL NURSING,HNSI0001495,2317.82
Department of Health,Leicestershire Partnership NHS Trust,23/11/23,Nurse - Band 6 -Agency,AMH - Central Access Point,HCL WORKFORCE SOLUTIONS,HWSI0001997,6221.01
Department of Health,Leicestershire Partnership NHS Trust,23/11/23,Nurse - Band 6 -Agency,Adult City Central CMHT - St Peters,HCL WORKFORCE SOLUTIONS,HWSI0001997,1479.54
Department of Health,Leicestershire Partnership NHS Trust,23/11/23,Nurse - Band 6 -Agency,Adult County South Leicestershire CMHT,HCL WORKFORCE SOLUTIONS,HWSI0001997,3850.37
Department of Health,Leicestershire Partnership NHS Trust,23/11/23,Nurse - Band 7 - Agency,Adult County South Leicestershire CMHT,HCL WORKFORCE SOLUTIONS,HWSI0001997,1375.22
Department of Health,Leicestershire Partnership NHS Trust,23/11/23,Nurse - Band 6 -Agency,Adult County- East Leicester CMHT,HCL WORKFORCE SOLUTIONS,HWSI0001997,1943.04
Department of Health,Leicestershire Partnership NHS Trust,23/11/23,Nurse - Band 6 -Agency,Crisis Resolution,HCL WORKFORCE SOLUTIONS,HWSI0001997,4502.70
Department of Health,Leicestershire Partnership NHS Trust,23/11/23,Nurse - Band 6 -Agency,Melton & Rutland CMHT MHSOP,HCL WORKFORCE SOLUTIONS,HWSI0001997,1487.01
Department of Health,Leicestershire Partnership NHS Trust,23/11/23,Nurse - Band 6 -Agency,Mental Health Liaison Team,HCL WORKFORCE SOLUTIONS,HWSI0001997,708.00
Department of Health,Leicestershire Partnership NHS Trust,24/11/23,Lease Rents (IFRS16),"OSL House (P54, LPT)",CABOT TRUSTEES LTD,076,41700.00
Department of Health,Leicestershire Partnership NHS Trust,27/11/23,Crs_NHS_LT1y -Resus Inventory Supplied.,Balance Sheet Collection,SUPPLY CHAIN CO LTD,1124229001,33796.58
Department of Health,Leicestershire Partnership NHS Trust,29/11/23,Professional & Technical Agency,LLR Shared Care Record Programme,RUTLAND COUNTY COUNCIL,9149805,44895.00
Department of Health,Leicestershire Partnership NHS Trust,29/11/23,Lease Rents (IFRS16),Bridge Park Plaza - First Floor (LPT),FISHER HARG PROCT LTD,905981,80507.52
